Cogmind - Beta 13 @@@ ROGUE MODE // 2024.05.18 @ 04:10:38 Player: void Result: Self-destructed Performance ------------- Evolutions (2) 1000 Regions Visited (6) 1200 Robots Destroyed (28) 140 Value Destroyed (1037) 1037 Prototype IDs (23) 460 Alien Tech Used (0) 0 Bonus (274) 274 TOTAL SCORE: 4111 Bonus ------- Follower Combat Kills 14 Aligned with FarCom 300 Friendly Fire -40 Cogmind --------- Core Integrity 84/550 Matter 286/300 Energy 300/300 System Corruption 8% Temperature Cool (0) Movement Core (200) Ox3 Location -8/Storage Parts ------- > --- POWER (1) -------- (None) > --- PROPULSION (3) --- (None) > --- UTILITY (4) ------ Medium Storage Unit Compact Battery > --- WEAPON (3) ------- Light Assault Rifle > --- INVENTORY (10) --- Light Treads Heat Sink Improved Heat Sink Peak State ------------ > --- POWER ------------ Light Nuclear Core > --- PROPULSION ------- Light Treads Light Treads Advanced Treads > --- UTILITY ---------- Advanced Heat Sink Medium Storage Unit Compact Battery Sensor Array > --- WEAPON ----------- Heavy Laser Light Assault Rifle Heavy Mace > --- INVENTORY -------- Light Nuclear Core Light Nuclear Core Heat Sink Improved Heat Sink Heavy Particle Cannon Light Assault Rifle [Rating: 27] Favorites ----------- Power Ion Engine Engine Ion Engine Power Core Light Nuclear Core Propulsion Light Treads Treads Light Treads Leg Aluminum Leg Utility Medium Storage Unit Device Seismic Detector Storage Medium Storage Unit Weapon Assault Rifle Energy Gun Heavy Laser Energy Cannon Heavy Particle Cannon Ballistic Gun Assault Rifle Ballistic Cannon Light Cannon Launcher EMP Blaster Impact Weapon Heavy Mace Build | -11 -10 -10 -10 -9 -8 -8 ------- Run | Yrd Mat Min Exi Min Mat Sto Slots Evolved 4 | . . . . . 4 . Power . | . . . . . . . Propulsion 1 | . . . . . 1 . Utility 2 | . . . . . 2 . Weapon 1 | . . . . . 1 . Parts Attached 45 | 6 2 1 . 1 32 3 Power 8 | 1 . . . . 7 . Engine 3 | 1 . . . . 2 . Core 5 | . . . . . 5 . Reactor . | . . . . . . . Propulsion 9 | 2 . . . . 7 . Treads 6 | 2 . . . . 4 . Leg 3 | . . . . . 3 . Wheel . | . . . . . . . Hover . | . . . . . . . Flight . | . . . . . . . Utility 7 | 1 2 . . . 4 . Device 4 | 1 . . . . 3 . Storage 3 | . 2 . . . 1 . Processor . | . . . . . . . Hackware . | . . . . . . . Protection . | . . . . . . . Artifact . | . . . . . . . Weapon 21 | 2 . 1 . 1 14 3 Energy Gun 2 | . . . . . 2 . Energy Cannon 1 | . . . . . 1 . Ballistic Gun 10 | 2 . . . . 5 3 Ballistic Cannon 1 | . . 1 . . . . Launcher 6 | . . . . 1 5 . Special Weapon . | . . . . . . . Impact Weapon 1 | . . . . . 1 . Slashing Weapon . | . . . . . . . Piercing Weapon . | . . . . . . . Special Melee Weapon . | . . . . . . . Unidentified Prototypes . | . . . . . . . Corrupted Parts 1 | . . . . . 1 . System Corruption 1 | . . . . . 1 . Parts Lost 27 | . . . . 2 17 8 Power 6 | . . . . . 5 1 Propulsion 7 | . . . . 1 3 3 Utility 4 | . . . . . 3 1 Weapon 10 | . . . . 1 6 3 Highest Loss Streak 11 | . . . . 2 11 10 To Critical Strikes . | . . . . . . . Average Slot Usage (%) 91 | . 96 100 100 88 87 76 Engine 9 | . 14 14 14 14 4 . Core 1 | . . . . . 3 9 Treads 19 | . 28 28 28 21 10 18 Leg 4 | . . . . . 9 . Device 17 | . 14 14 14 14 21 9 Storage 12 | . 10 14 14 14 12 18 Energy Gun 2 | . . . . . 5 . Ballistic Gun 15 | . 28 14 14 14 14 9 Ballistic Cannon 4 | . . 14 14 7 . . Launcher 1 | . . . . 2 2 . Impact Weapon 1 | . . . . . 4 9 Naked Turns . | . . . . . . . Heaviest Build 30 | 9 19 21 21 21 30 29 Greatest Support 62 | 40 40 40 40 40 62 62 Greatest Overweight (x) 5 | 2 . . . 1 5 . Average Overweight (x) . | . . . . . . . Largest Inventory Capacity 10 | 5 10 10 10 10 10 10 Average Capacity 9 | 5 7 10 10 10 10 10 Most Carried 8 | 4 8 7 8 8 8 5 Average Carried 6 | 2 5 7 7 7 5 4 Final Capacity 10 | 5 10 10 10 10 10 10 Final Carried 8 | 4 7 7 8 8 6 3 Class Distribution -------------------- 60% | Mutant 17% | Scavenger-Skirmisher 13% | Scavenger-Assassin 4% | Skirmisher Dominant Class ---------------- Mutant | -10/Materials Mutant | -10/Mines Mutant | -10/Exiles Mutant | -9/Mines Scavenger-Skirmisher | -8/Materials Scavenger-Skirmisher | -8/Storage Resources | -11 -10 -10 -10 -9 -8 -8 ----------- Run | Yrd Mat Min Exi Min Mat Sto Matter Collected 819 | 280 70 . . 56 413 . Remotely . | . . . . . . . Salvage Created 1009 | 102 153 . . 21 733 . Parts 45 | 3 9 . . 3 30 . Haulers Intercepted . | . . . . . . . Recyclers Shooed . | . . . . . . . Parts Field Recycled . | . . . . . . . Retrieved Matter . | . . . . . . . Parts Self-Destructed . | . . . . . . . Prevented . | . . . . . . . Kills | -11 -10 -10 -10 -9 -8 -8 ------- Run | Yrd Mat Min Exi Min Mat Sto Combat Hostiles Destroyed 25 | . 5 . . 2 18 . Melee 3 | . . . . . 3 . Guns 9 | . 5 . . . 4 . Cannons 1 | . . . . . 1 . AOE 9 | . . . . 2 7 . Classes Destroyed 6 | 2 2 . . . 2 . Tunneler 1 | 1 . . . . . . Recycler 1 | 1 . . . . . . Watcher 1 | . . . . . 1 . Swarmer 5 | . 3 . . 2 . . Grunt 18 | . 2 . . . 16 . Sentry 2 | . . . . . 2 . Best Kill Streak 10 | 2 3 . . 2 10 . Combat Bots Only 10 | . 3 . . 2 10 . Max Kills in Single Turn 3 | 1 2 . . 1 3 . Gunslinging 1 | . 1 . . . . . Exploded 3 | . . . . 1 3 . Melee 1 | . . . . . 1 . Uniques/NPCs Destroyed . | . . . . . . . Combat | -11 -10 -10 -10 -9 -8 -8 -------- Run | Yrd Mat Min Exi Min Mat Sto Hostile Shots Fired 207 | . 19 . . 13 147 28 Missed 42 | . 5 . . 1 29 7 Damage Taken 3204 | . 162 . . 581 1966 495 Core 629 | . 14 . . 149 406 60 Absorbed by Shields . | . . . . . . . Core Remaining (%) 67 | 100 . . . 34 . . Volleys Fired 63 | 5 15 . . 2 33 8 Largest 3 | 2 2 . . 2 3 2 Hottest 123 | 40 40 . . 50 123 98 Shots Fired 129 | 10 30 . . 4 74 11 Gun 113 | 10 30 . . 2 63 8 Cannon 6 | . . . . . 3 3 Launcher 10 | . . . . 2 8 . Special . | . . . . . . . Kinetic 95 | 10 30 . . 2 45 8 Thermal 24 | . . . . . 21 3 Explosive 5 | . . . . 2 3 . Electromagnetic 5 | . . . . . 5 . Robot Hit Streak 10 | 2 10 . . 1 7 7 Robot Miss Streak 3 | 1 2 . . 3 2 2 Penetration Max . | . . . . . . . Secondary Targets 1 | . 1 . . . . . Max Gunslinging Chain 1 | . 1 . . . . . Shots Hit Robots 98 | 5 22 . . 1 63 7 Core Hits 55 | 2 9 . . 2 39 3 Critical Kills 2 | 1 . . . . 1 . Critical Parts Destroyed 5 | . 1 . . . 4 . Critical Strikes 8 | 1 1 . . . 6 . Burn 1 | . . . . . 1 . Destroy 3 | 1 1 . . . 1 . Smash 4 | . . . . . 4 . Melee Attacks 18 | . . . . . 18 . Impact 18 | . . . . . 18 . Slashing . | . . . . . . . Piercing . | . . . . . . . Sneak Attacks . | . . . . . . . Combat Hostiles . | . . . . . . . Follow-up Attacks . | . . . . . . . Damage Inflicted 2384 | 54 233 . . 106 1894 97 Guns 971 | 54 233 . . . 612 72 Cannons 75 | . . . . . 50 25 Explosions 741 | . . . . 106 635 . Melee 597 | . . . . . 597 . Ramming . | . . . . . . . Kinetic 771 | 54 233 . . . 412 72 Thermal 275 | . . . . . 250 25 Explosive 565 | . . . . 106 459 . Electromagnetic 176 | . . . . . 176 . Impact 597 | . . . . . 597 . Slashing . | . . . . . . . Piercing . | . . . . . . . Highest Corruption 8 | . . . . . 2 8 Average Corruption 2 | . . . . . 1 3 Corruption Purged . | . . . . . . . Corruption Blocked . | . . . . . . . Effects 9 | . . . . . 7 2 Message Errors 4 | . . . . . 3 1 Heat Flow Errors 2 | . . . . . 1 1 Energy Discharges 1 | . . . . . 1 . Data Loss (minor) 2 | . . . . . 2 . Overload Shots . | . . . . . . . Overflow Damage 244 | . . . . . 244 . Projectiles . | . . . . . . . Explosions 9 | . . . . . 9 . Melee 235 | . . . . . 235 . Knockbacks 4 | . . . . . 4 . Impact 4 | . . . . . 4 . Kinetic . | . . . . . . . Secondary . | . . . . . . . Self-Inflicted Damage 137 | . . . . 34 103 . Shots 7 | . . . . 1 6 . Rammed . | . . . . . . . Targets Rammed . | . . . . . . . Kicked . | . . . . . . . Crushed . | . . . . . . . Highest Temperature 361 | . 9 . . . 361 242 Average Temperature 113 | . 6 . . . 120 164 Received Heat Transfer 1215 | . 72 . . . 1044 99 Effects 2 | . . . . . 1 1 Energy Bleed 1 | . . . . . . 1 Matter Decay 1 | . . . . . 1 . Siege Activations . | . . . . . . . Robots Corrupted . | . . . . . . . Combat Hostiles . | . . . . . . . Parts Fried 4 | . . . . . 4 . Impact Corruptions 8 | . . . . . 8 . Robots Melted . | . . . . . . . Combat Hostiles . | . . . . . . . Parts Melted 1 | . . . . . 1 . Heat Transferred 629 | . . . . . 592 37 Parts Sabotaged . | . . . . . . . Parts Stolen . | . . . . . . . Parts Stripped . | . . . . . . . Power Chain Reactions 1 | . . . . . 1 . Alert | -11 -10 -10 -10 -9 -8 -8 ------- Run | Yrd Mat Min Exi Min Mat Sto Peak Influence 180 | 10 149 57 . 87 180 51 Initial 57 | . 6 57 . . 33 50 Average 61 | 4 92 57 . 9 87 32 Maximum Alert Level . | . . . . . . . Low Security (%) 100 | 100 100 100 . 100 100 100 Level 1 . | . . . . . . . Level 2 . | . . . . . . . Level 3 . | . . . . . . . Level 4 . | . . . . . . . Level 5 . | . . . . . . . High Security . | . . . . . . . Max Security . | . . . . . . . Squads Dispatched 6 | . . . . 1 5 . Investigation 3 | . . . . . 3 . Extermination . | . . . . . . . Reinforcement 1 | . . . . . 1 . Assault 1 | . . . . 1 . . Garrison 1 | . . . . . 1 . Intercept . | . . . . . . . Searches Triggered . | . . . . . . . Construction Impeded . | . . . . . . . Haulers Reinforced . | . . . . . . . Active Scanning Responses . | . . . . . . . Cargo Convoy Interrupts . | . . . . . . . Stealth | -11 -10 -10 -10 -9 -8 -8 --------- Run | Yrd Mat Min Exi Min Mat Sto Distress Signals 2 | . . . . 2 . . Communications Jammed . | . . . . . . . Distress Signals . | . . . . . . . Times Spotted 39 | . 7 . . 6 23 3 Peak Tracking Total 7 | . 5 . . 4 7 3 Tactical Retreats . | . . . . . . . Traps | -11 -10 -10 -10 -9 -8 -8 ------- Run | Yrd Mat Min Exi Min Mat Sto Traps Triggered 1 | . . . . . . 1 Indirectly . | . . . . . . . Trap Hack Attempts . | . . . . . . . Triggered . | . . . . . . . Disarmed . | . . . . . . . Reprogrammed . | . . . . . . . Reused . | . . . . . . . Traps Extracted . | . . . . . . . Installed . | . . . . . . . Triggered . | . . . . . . . Machines | -11 -10 -10 -10 -9 -8 -8 ---------- Run | Yrd Mat Min Exi Min Mat Sto Machines Disabled 2 | . . . . . 2 . Max in Single Turn 1 | . . . . . 1 . Machines Repaired . | . . . . . . . Machines Dismantled . | . . . . . . . Machines Sabotaged . | . . . . . . . Overloaded Fab Kills . | . . . . . . . Hacking | -11 -10 -10 -10 -9 -8 -8 --------- Run | Yrd Mat Min Exi Min Mat Sto Machines Accessed 8 | . 1 . 1 1 5 . Terminals 5 | . 1 . . 1 3 . Fabricators . | . . . . . . . Repair Stations . | . . . . . . . Recycling Units . | . . . . . . . Scanalyzers 2 | . . . . . 2 . Garrison Access . | . . . . . . . Total Hacks 21 | . 3 . 1 3 14 . Successful 10 | . 1 . 1 1 7 . Failed 11 | . 2 . . 2 7 . Catastrophic 3 | . . . . . 3 . Database Lockouts . | . . . . . . . Manual 7 | . 3 . 1 . 3 . Terminals 15 | . 3 . . 3 9 . Fabricators . | . . . . . . . Repair Stations . | . . . . . . . Recycling Units . | . . . . . . . Scanalyzers 5 | . . . . . 5 . Garrison Access . | . . . . . . . Terminal Hacks 6 | . 1 . 1 1 3 . Record 1 | . . . . . 1 . Level Access Points 1 | . . . . 1 . . Branch Access Points 1 | . 1 . . . . . Alert Level 1 | . . . . . 1 . Zone Layout 1 | . . . . . 1 . Derelict Proto ID Bank 1 | . . . 1 . . . Fabricator Hacks . | . . . . . . . Repair Station Hacks . | . . . . . . . Recycling Unit Hacks . | . . . . . . . Scanalyzer 4 | . . . . . 4 . Insert Component 2 | . . . . . 2 . Analyze 2 | . . . . . 2 . Garrison Access Hacks . | . . . . . . . Unauthorized Hacks . | . . . . . . . Terminals . | . . . . . . . Fabricators . | . . . . . . . Repair Stations . | . . . . . . . Recycling Units . | . . . . . . . Scanalyzers . | . . . . . . . Garrison Access . | . . . . . . . Data Cores Recovered . | . . . . . . . Used . | . . . . . . . Hacking Detections 5 | . 1 . . 1 3 . Full Trace Events 3 | . . . . . 3 . Feedback Events . | . . . . . . . Feedback Blocked . | . . . . . . . Robot Schematics Acquired . | . . . . . . . Robots Built . | . . . . . . . Authchips . | . . . . . . . Time . | . . . . . . . Total Robot Build Rating . | . . . . . . . Part Schematics Acquired 2 | . . . . . 2 . Parts Built . | . . . . . . . Authchips . | . . . . . . . Time . | . . . . . . . Total Part Build Rating . | . . . . . . . Parts Repaired . | . . . . . . . Time . | . . . . . . . Parts Recycled . | . . . . . . . Recycled Matter . | . . . . . . . Retrieved Matter . | . . . . . . . Retrieved Components . | . . . . . . . Parts Scanalyzed 2 | . . . . . 2 . Part Schematics Acquired 2 | . . . . . 2 . Parts Damaged . | . . . . . . . Bothacking | -11 -10 -10 -10 -9 -8 -8 ------------ Run | Yrd Mat Min Exi Min Mat Sto Used RIF Installer . | . . . . . . . Robots Hacked . | . . . . . . . Non-combat . | . . . . . . . Combat . | . . . . . . . Robot Hacks Applied . | . . . . . . . Relay Couplers Released . | . . . . . . . Fabnet Peak Effective % . | . . . . . . . Robots Rewired . | . . . . . . . Allies Hacked . | . . . . . . . Hacks Repelled . | . . . . . . . Allies | -11 -10 -10 -10 -9 -8 -8 -------- Run | Yrd Mat Min Exi Min Mat Sto Total Allies 4 | . . . . 4 . . Largest Group 3 | . . . . 3 . . Highest-Rated Group 40 | . . . . 40 . . Highest-Rated Ally 31 | . . . . 31 . . Total Orders . | . . . . . . . Ally Attacks 7 | . . . . 7 . . Total Damage 97 | . . . . 97 . . Kills 2 | . . . . 2 . . Allies Corrupted . | . . . . . . . Allies Melted . | . . . . . . . Intel | -11 -10 -10 -10 -9 -8 -8 ------- Run | Yrd Mat Min Exi Min Mat Sto Robot Analysis Total . | . . . . . . . Derelict Logs Recovered 2 | . . 1 . 1 . . Drone Launches . | . . . . . . . Drone Recoveries . | . . . . . . . Exploration | -11 -10 -10 -10 -9 -8 -8 ------------- Run | Yrd Mat Min Exi Min Mat Sto Turns Passed 2506 | 93 298 148 405 534 1002 26 Spaces Moved 1246 | 47 134 85 253 309 415 3 Core 22 | 13 . . . . 9 . Treads 1040 | 34 134 85 253 309 222 3 Legs 184 | . . . . . 184 . Wheels . | . . . . . . . Hover . | . . . . . . . Flight . | . . . . . . . Fastest Speed 50 | 50 160 160 160 160 120 155 Average Speed 162 | 143 160 160 160 168 162 155 Slowest Speed 300 | 160 160 160 160 240 300 155 Overloaded Moves . | . . . . . . . Propulsion Burnouts . | . . . . . . . Robots Hopped . | . . . . . . . Cave-ins Triggered . | . . . . . . . Exploration Rate (%) 26 | 4 27 24 49 52 24 3 Regions Visited 6 Branch Regions 4 Pre-discovered Areas 2 | . . 1 . 1 . . Known Exits Taken 2 | . 1 . . 1 . . Unknown Exits Taken 4 | 1 . 1 1 . 1 . Scrap Searched 1 | . . . . 1 . . Spaces Dug . | . . . . . . . Terrain Destroyed 40 | . . . . 14 24 2 Melee . | . . . . . . . Projectile 3 | . . . . . 1 2 AOE 37 | . . . . 14 23 . Terrain Rammed . | . . . . . . . Walls Destroyed . | . . . . . . . Machines Disabled . | . . . . . . . Actions | -11 -10 -10 -10 -9 -8 -8 --------- Run | Yrd Mat Min Exi Min Mat Sto Total 1580 | 61 191 97 253 320 644 14 Wait 190 | . 34 12 . 8 136 . Move 1240 | 46 133 84 252 308 414 3 Hop . | . . . . . . . Pick Up 20 | 4 5 . 1 1 9 . Fast Attach 16 | 6 . . . . 10 . Attach 17 | . 1 . . 1 12 3 Detach . | . . . . . . . Swap 12 | . 1 1 . . 10 . Drop 4 | . 2 . . . 2 . Fire 63 | 5 15 . . 2 33 8 Melee 18 | . . . . . 18 . Ram . | . . . . . . . Kick . | . . . . . . . Crush . | . . . . . . . Escape Stasis . | . . . . . . . Rewire . | . . . . . . . Trap . | . . . . . . . Miscellaneous . | . . . . . . . Route ------- -11/Scrapyard -10/Materials (discovered 2 exits: *Min x2) -10/Mines -10/Exiles -9/Mines (discovered 2 exits: *Mat x2) -8/Materials -8/Storage History --------- Turn | Location | Event 16 | -11/Scrapyard | Discovered new exit (range 15) 94 | -11/Scrapyard | Entered Materials 311 | -10/Materials | Discovered new exit (range 11) 318 | -10/Materials | Build established: Mutant 322 | -10/Materials | Identified exit to Mines 392 | -10/Materials | Entered Mines 423 | -10/Mines | Learned location of Storage (-8) 531 | -10/Mines | Deemed a non-threat by the Exiles lab entrance 532 | -10/Mines | Discovered new exit (range 5) 540 | -10/Mines | Entered Exiles 580 | -10/Exiles | Met 8R-AWN 608 | -10/Exiles | Met EX-HEX 649 | -10/Exiles | Met EX-BIN 675 | -10/Exiles | Aligned with FarCom system 676 | -10/Exiles | Given EX-Vault access code 720 | -10/Exiles | Opened EX-Vault 732 | -10/Exiles | Found Trap Reconfigurator 767 | -10/Exiles | Warned to stay clear of 0b10 Research branches 813 | -10/Exiles | Met EX-DEC 925 | -10/Exiles | Discovered new exit (range 14) 945 | -10/Exiles | Left Exiles lab with Trap Reconfigurator 945 | -10/Exiles | Entered Mines 952 | -9/Mines | Received a Rocket Launcher from a helpful Derelict 1016 | -9/Mines | Assisted by bots powering up and referring to "LRC-V3" 1089 | -9/Mines | Identified exit to Materials 1216 | -9/Mines | Assembled infested the area 1237 | -9/Mines | Core integrity fell below 50% 1256 | -9/Mines | Lost 4 allies 1333 | -9/Mines | Met a Derelict testing a Signal Generator 1479 | -9/Mines | Entered Materials 1479 | -8/Materials | Evolved 4 slots: Propulsion x1, Utility x2, Weapon x1 2059 | -8/Materials | Core integrity fell below 50% 2069 | -8/Materials | Lost 11 parts (2p3n2u4w) 2081 | -8/Materials | Destroyed 10 combat bots 2381 | -8/Materials | Build established: Scavenger-Assassin 2463 | -8/Materials | Discovered new exit (range 6) 2467 | -8/Materials | Garrison activated, responded to threat 2481 | -8/Materials | Entered Storage 2499 | -8/Storage | Core integrity fell below 20% 2507 | -8/Storage | Self-destructed Last Messages --------------- L-31 Rogue emerges from a hatch in the floor. G-47 Trooper emerges from a hatch in the floor. System corrupted: Heat flow error (+237). Critical hit (Burn: +37). Hvy. Assault Rifle severed. Overheating: Energy bleed (-79). Hvy. Particle Cannon destroyed. Lgt. Treads destroyed. Lgt. Assault Rifle destroyed. System corrupted by crushing effect (+3). Lgt. Nuclear Core destroyed. U-05 Engineer lays Concrete. Adv. Heat Sink destroyed. System corrupted by crushing effect (+3). U-05 Engineer lays Concrete. Adv. Treads destroyed. Hvy. Mace destroyed. U-05 Engineer lays Concrete. Z7QHTT5ZOM:M>R| ODML|Z<8